[Event "Titled Tuesday Blitz April 26 Early 2022"]
[White "O`Gorman, Tom"]
[Black "Odegov, Artem"]
[WhiteFideId "2508249"]
[BlackFideId "34183644"]
[WhiteElo "2247"]
[BlackElo "2286"]
[Result "1-0"]
[Round "05"]
[TimeControl "180+1"]
[Date "2022.04.26"]
[WhiteClock "0:01:54"]
[BlackClock "0:00:46"]

1. e4 {[%clk 0:03:00]}  e6 {[%clk 0:02:57]} 2. d4 {[%clk 0:02:56]}  d5 {[%clk 0:02:57]} 3. Bd3 {[%clk 0:02:57]}  dxe4 {[%clk 0:02:57]} 4. Bxe4 {[%clk 0:02:57]}  Nf6 {[%clk 0:02:57]} 5. Bf3 {[%clk 0:02:57]}  c5 {[%clk 0:02:58]} 6. Ne2 {[%clk 0:02:57]}  Nc6 {[%clk 0:02:59]} 7. Be3 {[%clk 0:02:55]}  cxd4 {[%clk 0:02:59]} 8. Nxd4 {[%clk 0:02:56]}  Ne5 {[%clk 0:02:58]} 9. Nc3 {[%clk 0:02:55]}  Be7 {[%clk 0:02:58]} 10. Qe2 {[%clk 0:02:51]}  O-O {[%clk 0:02:55]} 11. O-O-O {[%clk 0:02:51]}  Qc7 {[%clk 0:02:44]} 12. g4 {[%clk 0:02:47]}  Nxf3 {[%clk 0:02:02]} 13. Qxf3 {[%clk 0:02:47]}  e5 {[%clk 0:02:02]} 14. Nf5 {[%clk 0:02:42]}  Bc5 {[%clk 0:02:00]} 15. Bg5 {[%clk 0:02:36]}  Bxf5 {[%clk 0:01:15]} 16. Qxf5 {[%clk 0:02:16]}  Bd4 {[%clk 0:01:00]} 17. Bxf6 {[%clk 0:01:55]}  Bxc3 {[%clk 0:00:58]} 18. Qg5 {[%clk 0:01:54]}  Bxb2+ {[%clk 0:00:46]} 19. Kb1 {[%clk 0:01:54]} 1-0


[Site "https://www.chess.com"]

[Event "Titled Tuesday Blitz April 26 Early 2022"]
[White "Okike, David"]
[Black "Omelja, Artem"]
[WhiteFideId "8500134"]
[BlackFideId "14119846"]
[WhiteElo "2232"]
[BlackElo "2382"]
[Result "0-1"]
[Round "05"]
[TimeControl "180+1"]
[Date "2022.04.26"]
[WhiteClock "0:00:30"]
[BlackClock "0:00:03"]

1. e4 {[%clk 0:03:00]}  c5 {[%clk 0:02:57]} 2. Nf3 {[%clk 0:03:00]}  e6 {[%clk 0:02:57]} 3. d4 {[%clk 0:03:00]}  cxd4 {[%clk 0:02:58]} 4. Nxd4 {[%clk 0:03:00]}  Nf6 {[%clk 0:02:59]} 5. Bd3 {[%clk 0:03:01]}  Nc6 {[%clk 0:02:59]} 6. Nxc6 {[%clk 0:03:00]}  bxc6 {[%clk 0:02:59]} 7. Nc3 {[%clk 0:02:59]}  d5 {[%clk 0:02:59]} 8. O-O {[%clk 0:02:59]}  Be7 {[%clk 0:02:57]} 9. Qe2 {[%clk 0:02:58]}  O-O {[%clk 0:02:56]} 10. e5 {[%clk 0:02:59]}  Nd7 {[%clk 0:02:56]} 11. Na4 {[%clk 0:02:59]}  c5 {[%clk 0:02:36]} 12. c4 {[%clk 0:02:58]}  d4 {[%clk 0:02:30]} 13. Be4 {[%clk 0:02:53]}  Rb8 {[%clk 0:02:30]} 14. f4 {[%clk 0:02:53]}  Bb7 {[%clk 0:02:25]} 15. b3 {[%clk 0:02:51]}  Bxe4 {[%clk 0:02:15]} 16. Qxe4 {[%clk 0:02:51]}  Nb6 {[%clk 0:02:15]} 17. Nb2 {[%clk 0:02:50]}  a5 {[%clk 0:02:14]} 18. a4 {[%clk 0:02:49]}  Nd7 {[%clk 0:02:10]} 19. Rf3 {[%clk 0:02:47]}  Re8 {[%clk 0:02:08]} 20. Ra3 {[%clk 0:02:46]}  Qb6 {[%clk 0:02:05]} 21. Bd2 {[%clk 0:02:43]}  Bd8 {[%clk 0:01:51]} 22. Nd3 {[%clk 0:02:37]}  Qb7 {[%clk 0:01:50]} 23. Qe1 {[%clk 0:02:35]}  Bc7 {[%clk 0:01:48]} 24. Nf2 {[%clk 0:02:30]}  Qa7 {[%clk 0:01:42]} 25. Ne4 {[%clk 0:02:25]}  Rb7 {[%clk 0:01:41]} 26. Rh3 {[%clk 0:02:16]}  Nf8 {[%clk 0:01:34]} 27. Rg3 {[%clk 0:02:10]}  Ng6 {[%clk 0:01:32]} 28. h4 {[%clk 0:02:04]}  Kh8 {[%clk 0:01:20]} 29. h5 {[%clk 0:02:04]}  Ne7 {[%clk 0:01:20]} 30. h6 {[%clk 0:01:48]}  g6 {[%clk 0:01:20]} 31. Nd6 {[%clk 0:01:47]}  Bxd6 {[%clk 0:01:08]} 32. exd6 {[%clk 0:01:48]}  Nf5 {[%clk 0:01:09]} 33. Rh3 {[%clk 0:01:44]}  f6 {[%clk 0:01:04]} 34. Bxa5 {[%clk 0:01:44]}  Kg8 {[%clk 0:00:58]} 35. Bc7 {[%clk 0:01:41]}  Kf7 {[%clk 0:00:55]} 36. g4 {[%clk 0:01:39]}  Ne3 {[%clk 0:00:54]} 37. Rxe3 {[%clk 0:01:40]}  dxe3 {[%clk 0:00:54]} 38. Qxe3 {[%clk 0:01:40]}  Rxc7 {[%clk 0:00:27]} 39. dxc7 {[%clk 0:01:40]}  Qxc7 {[%clk 0:00:28]} 40. a5 {[%clk 0:01:40]}  Rd8 {[%clk 0:00:28]} 41. Ra1 {[%clk 0:01:37]}  Rd4 {[%clk 0:00:24]} 42. Rf1 {[%clk 0:00:55]}  Qxa5 {[%clk 0:00:19]} 43. g5 {[%clk 0:00:55]}  Qd8 {[%clk 0:00:14]} 44. Re1 {[%clk 0:00:53]}  Qd6 {[%clk 0:00:14]} 45. Rf1 {[%clk 0:00:52]}  Rd3 {[%clk 0:00:13]} 46. Qe4 {[%clk 0:00:51]}  Rxb3 {[%clk 0:00:12]} 47. gxf6 {[%clk 0:00:49]}  Kxf6 {[%clk 0:00:09]} 48. Qe5+ {[%clk 0:00:45]}  Qxe5 {[%clk 0:00:09]} 49. fxe5+ {[%clk 0:00:45]}  Kxe5 {[%clk 0:00:10]} 50. Rf7 {[%clk 0:00:46]}  Rh3 {[%clk 0:00:06]} 51. Rxh7 {[%clk 0:00:46]}  Kd4 {[%clk 0:00:06]} 52. Kg2 {[%clk 0:00:46]}  Rh5 {[%clk 0:00:06]} 53. Re7 {[%clk 0:00:46]}  Rxh6 {[%clk 0:00:04]} 54. Rxe6 {[%clk 0:00:46]}  Kxc4 {[%clk 0:00:05]} 55. Kg3 {[%clk 0:00:45]}  Rh5 {[%clk 0:00:05]} 56. Rxg6 {[%clk 0:00:44]}  Rf5 {[%clk 0:00:04]} 57. Kg4 {[%clk 0:00:45]}  Rf8 {[%clk 0:00:04]} 58. Rd6 {[%clk 0:00:42]}  Kb3 {[%clk 0:00:04]} 59. Rb6+ {[%clk 0:00:40]}  Kc3 {[%clk 0:00:04]} 60. Kg3 {[%clk 0:00:39]}  c4 {[%clk 0:00:04]} 61. Kg2 {[%clk 0:00:40]}  Kd3 {[%clk 0:00:05]} 62. Rd6+ {[%clk 0:00:40]}  Kc2 {[%clk 0:00:05]} 63. Re6 {[%clk 0:00:37]}  c3 {[%clk 0:00:05]} 64. Re2+ {[%clk 0:00:37]}  Kb1 {[%clk 0:00:05]} 65. Re1+ {[%clk 0:00:36]}  Kb2 {[%clk 0:00:05]} 66. Re7 {[%clk 0:00:36]}  c2 {[%clk 0:00:04]} 67. Rb7+ {[%clk 0:00:36]}  Kc1 {[%clk 0:00:05]} 68. Kg1 {[%clk 0:00:35]}  Rd8 {[%clk 0:00:05]} 69. Kf2 {[%clk 0:00:35]}  Kd2 {[%clk 0:00:04]} 70. Rb2 {[%clk 0:00:30]}  Kc3 {[%clk 0:00:04]} 71. Ra2 {[%clk 0:00:30]}  c1=Q {[%clk 0:00:03]} 0-1


[Site "https://www.chess.com"]

[Event "Titled Tuesday Blitz April 26 Early 2022"]
[White "Olsen, Filip Boe"]
[Black "Butti, Enrique"]
[WhiteFideId "1440640"]
[BlackFideId "3700470"]
[WhiteElo "2188"]
[BlackElo "2080"]
[Result "0-1"]
[Round "05"]
[TimeControl "180+1"]
[Date "2022.04.26"]
[WhiteClock "0:00:19"]
[BlackClock "0:00:41"]

1. d4 {[%clk 0:02:55]}  Nf6 {[%clk 0:02:58]} 2. c4 {[%clk 0:02:52]}  e6 {[%clk 0:02:58]} 3. Nc3 {[%clk 0:02:52]}  c5 {[%clk 0:02:56]} 4. d5 {[%clk 0:02:52]}  exd5 {[%clk 0:02:55]} 5. cxd5 {[%clk 0:02:53]}  d6 {[%clk 0:02:55]} 6. Nf3 {[%clk 0:02:53]}  g6 {[%clk 0:02:55]} 7. Bf4 {[%clk 0:02:53]}  Bg7 {[%clk 0:02:52]} 8. Qa4+ {[%clk 0:02:54]}  Bd7 {[%clk 0:02:43]} 9. Qb3 {[%clk 0:02:53]}  b5 {[%clk 0:02:43]} 10. Bxd6 {[%clk 0:02:53]}  b4 {[%clk 0:02:40]} 11. Na4 {[%clk 0:02:44]}  Ne4 {[%clk 0:02:36]} 12. Bxc5 {[%clk 0:02:32]}  Qa5 {[%clk 0:02:26]} 13. Bxb4 {[%clk 0:01:37]}  Qxa4 {[%clk 0:02:21]} 14. Qc4 {[%clk 0:01:35]}  Nf6 {[%clk 0:02:04]} 15. e4 {[%clk 0:01:28]}  a5 {[%clk 0:02:02]} 16. Bc3 {[%clk 0:01:00]}  O-O {[%clk 0:01:51]} 17. e5 {[%clk 0:01:00]}  Ne4 {[%clk 0:01:47]} 18. Qxa4 {[%clk 0:00:56]}  Bxa4 {[%clk 0:01:46]} 19. Bd4 {[%clk 0:00:56]}  Nd7 {[%clk 0:01:39]} 20. Bd3 {[%clk 0:00:56]}  Nec5 {[%clk 0:01:33]} 21. Bc4 {[%clk 0:00:56]}  Rfe8 {[%clk 0:01:30]} 22. O-O {[%clk 0:00:56]}  Rab8 {[%clk 0:01:24]} 23. b3 {[%clk 0:00:55]}  Bb5 {[%clk 0:01:23]} 24. Rfe1 {[%clk 0:00:55]}  Bxc4 {[%clk 0:01:22]} 25. bxc4 {[%clk 0:00:56]}  Rb4 {[%clk 0:01:21]} 26. Rac1 {[%clk 0:00:56]}  Rc8 {[%clk 0:01:16]} 27. Nd2 {[%clk 0:00:31]}  Nd3 {[%clk 0:01:15]} 28. Bc3 {[%clk 0:00:31]}  Rb7 {[%clk 0:01:06]} 29. e6 {[%clk 0:00:27]}  fxe6 {[%clk 0:01:01]} 30. dxe6 {[%clk 0:00:26]}  N7c5 {[%clk 0:01:01]} 31. e7 {[%clk 0:00:26]}  Nxe1 {[%clk 0:00:58]} 32. Rxe1 {[%clk 0:00:24]}  Bxc3 {[%clk 0:00:53]} 33. e8=Q+ {[%clk 0:00:24]}  Rxe8 {[%clk 0:00:52]} 34. Rxe8+ {[%clk 0:00:25]}  Kf7 {[%clk 0:00:50]} 35. Re2 {[%clk 0:00:18]}  Bxd2 {[%clk 0:00:49]} 36. g3 {[%clk 0:00:18]}  Bc3 {[%clk 0:00:47]} 37. Rc2 {[%clk 0:00:19]}  Bd4 {[%clk 0:00:46]} 38. Rd2 {[%clk 0:00:19]}  Ne6 {[%clk 0:00:44]} 39. Re2 {[%clk 0:00:19]}  Rb2 {[%clk 0:00:43]} 40. Re1 {[%clk 0:00:19]}  Rxf2 {[%clk 0:00:41]} 0-1


[Site "https://www.chess.com"]

[Event "Titled Tuesday Blitz April 26 Early 2022"]
[White "Oparin, Grigoriy"]
[Black "Shankland, Sam"]
[WhiteFideId "24125890"]
[BlackFideId "2004887"]
[WhiteElo "2665"]
[BlackElo "2618"]
[Result "0-1"]
[Round "05"]
[TimeControl "180+1"]
[Date "2022.04.26"]
[WhiteClock "0:00:03"]
[BlackClock "0:00:17"]

1. Nf3 {[%clk 0:03:00]}  d5 {[%clk 0:02:59]} 2. g3 {[%clk 0:03:01]}  g6 {[%clk 0:02:58]} 3. c4 {[%clk 0:03:02]}  dxc4 {[%clk 0:02:56]} 4. Na3 {[%clk 0:03:02]}  Bg7 {[%clk 0:02:55]} 5. Nxc4 {[%clk 0:03:02]}  Nc6 {[%clk 0:02:56]} 6. d3 {[%clk 0:03:03]}  Nh6 {[%clk 0:02:53]} 7. Bg2 {[%clk 0:02:59]}  O-O {[%clk 0:02:52]} 8. O-O {[%clk 0:02:59]}  Nf5 {[%clk 0:02:51]} 9. Bf4 {[%clk 0:02:53]}  Be6 {[%clk 0:02:46]} 10. Rc1 {[%clk 0:02:52]}  Rc8 {[%clk 0:02:37]} 11. a3 {[%clk 0:02:30]}  Nd6 {[%clk 0:02:25]} 12. Nce5 {[%clk 0:02:18]}  Nxe5 {[%clk 0:02:23]} 13. Bxe5 {[%clk 0:02:19]}  Bh6 {[%clk 0:02:18]} 14. e3 {[%clk 0:02:10]}  c5 {[%clk 0:02:11]} 15. b4 {[%clk 0:02:02]}  cxb4 {[%clk 0:01:59]} 16. axb4 {[%clk 0:02:03]}  Qd7 {[%clk 0:01:56]} 17. Ba1 {[%clk 0:01:38]}  Bh3 {[%clk 0:01:38]} 18. Ne5 {[%clk 0:01:02]}  Qe6 {[%clk 0:01:37]} 19. Bxh3 {[%clk 0:01:00]}  Qxh3 {[%clk 0:01:38]} 20. Qf3 {[%clk 0:00:55]}  Bg7 {[%clk 0:01:32]} 21. Nc4 {[%clk 0:00:43]}  Nxc4 {[%clk 0:01:13]} 22. Rxc4 {[%clk 0:00:44]}  Rxc4 {[%clk 0:01:10]} 23. dxc4 {[%clk 0:00:45]}  Qc8 {[%clk 0:01:08]} 24. Bxg7 {[%clk 0:00:33]}  Kxg7 {[%clk 0:01:08]} 25. Qe4 {[%clk 0:00:34]}  Qc7 {[%clk 0:00:59]} 26. Qd4+ {[%clk 0:00:31]}  e5 {[%clk 0:00:43]} 27. Qxa7 {[%clk 0:00:31]}  Qxc4 {[%clk 0:00:44]} 28. Qxb7 {[%clk 0:00:30]}  Rd8 {[%clk 0:00:44]} 29. h4 {[%clk 0:00:23]}  Rd5 {[%clk 0:00:43]} 30. h5 {[%clk 0:00:19]}  gxh5 {[%clk 0:00:39]} 31. Qe7 {[%clk 0:00:20]}  Qg4 {[%clk 0:00:37]} 32. Rb1 {[%clk 0:00:13]}  Qf5 {[%clk 0:00:34]} 33. Rf1 {[%clk 0:00:10]}  Qg4 {[%clk 0:00:26]} 34. Qh4 {[%clk 0:00:11]}  Rb5 {[%clk 0:00:23]} 35. Rb1 {[%clk 0:00:10]}  Kg6 {[%clk 0:00:22]} 36. e4 {[%clk 0:00:07]}  Qf3 {[%clk 0:00:20]} 37. Qh3 {[%clk 0:00:03]}  Qxe4 {[%clk 0:00:19]} 38. Rc1 {[%clk 0:00:03]}  Rxb4 {[%clk 0:00:18]} 39. Qf1 {[%clk 0:00:03]}  Rd4 {[%clk 0:00:18]} 40. Qa6+ {[%clk 0:00:02]}  f6 {[%clk 0:00:17]} 41. Qc8 {[%clk 0:00:02]}  Qg4 {[%clk 0:00:16]} 42. Qg8+ {[%clk 0:00:02]}  Kh6 {[%clk 0:00:16]} 43. Qf8+ {[%clk 0:00:03]}  Qg7 {[%clk 0:00:17]} 44. Qe8 {[%clk 0:00:02]}  Rd7 {[%clk 0:00:15]} 45. Kg2 {[%clk 0:00:03]}  Re7 {[%clk 0:00:15]} 46. Qc8 {[%clk 0:00:03]}  Qf7 {[%clk 0:00:15]} 47. Rh1 {[%clk 0:00:02]}  Kg7 {[%clk 0:00:16]} 48. Qf5 {[%clk 0:00:01]}  Qg6 {[%clk 0:00:15]} 49. Qxh5 {[%clk 0:00:02]}  Qxh5 {[%clk 0:00:15]} 50. Rxh5 {[%clk 0:00:03]}  Kg6 {[%clk 0:00:15]} 51. Rh1 {[%clk 0:00:04]}  f5 {[%clk 0:00:16]} 52. Ra1 {[%clk 0:00:04]}  h5 {[%clk 0:00:16]} 53. Ra6+ {[%clk 0:00:05]}  Kg5 {[%clk 0:00:17]} 54. Ra5 {[%clk 0:00:05]}  e4 {[%clk 0:00:17]} 55. Rb5 {[%clk 0:00:05]}  Rf7 {[%clk 0:00:17]} 56. Kh3 {[%clk 0:00:05]}  Rc7 {[%clk 0:00:16]} 57. Ra5 {[%clk 0:00:04]}  Rc2 {[%clk 0:00:17]} 58. Kg2 {[%clk 0:00:03]}  e3 {[%clk 0:00:15]} 59. Kf3 {[%clk 0:00:03]}  exf2 {[%clk 0:00:15]} 60. Kg2 {[%clk 0:00:04]}  h4 {[%clk 0:00:14]} 61. gxh4+ {[%clk 0:00:04]}  Kg4 {[%clk 0:00:15]} 62. Ra4+ {[%clk 0:00:04]}  f4 {[%clk 0:00:15]} 63. h5 {[%clk 0:00:03]}  f1=Q+ {[%clk 0:00:16]} 64. Kxf1 {[%clk 0:00:04]}  Kg3 {[%clk 0:00:16]} 65. h6 {[%clk 0:00:02]}  f3 {[%clk 0:00:16]} 66. Ra1 {[%clk 0:00:01]}  Rh2 {[%clk 0:00:16]} 67. Kg1 {[%clk 0:00:01]}  f2+ {[%clk 0:00:15]} 68. Kf1 {[%clk 0:00:02]}  Rh1+ {[%clk 0:00:16]} 69. Ke2 {[%clk 0:00:03]}  Rxa1 {[%clk 0:00:17]} 0-1


[Site "https://www.chess.com"]

[Event "Titled Tuesday Blitz April 26 Early 2022"]
[White "Oye-Stromberg, Alexander"]
[Black "Nguyen, Hong Anh"]
[WhiteFideId "1525999"]
[BlackFideId "12406732"]
[WhiteElo "1934"]
[BlackElo "2016"]
[Result "0-1"]
[Round "05"]
[TimeControl "180+1"]
[Date "2022.04.26"]
[WhiteClock "0:01:40"]
[BlackClock "0:01:40"]

1. e4 {[%clk 0:03:00]}  c5 {[%clk 0:02:58]} 2. Ne2 {[%clk 0:02:59]}  Nc6 {[%clk 0:02:58]} 3. Nbc3 {[%clk 0:02:58]}  g6 {[%clk 0:02:58]} 4. d4 {[%clk 0:02:55]}  cxd4 {[%clk 0:02:58]} 5. Nxd4 {[%clk 0:02:56]}  Bg7 {[%clk 0:02:59]} 6. Be3 {[%clk 0:02:56]}  Nf6 {[%clk 0:02:58]} 7. Bc4 {[%clk 0:02:54]}  O-O {[%clk 0:02:58]} 8. h4 {[%clk 0:02:53]}  Nxe4 {[%clk 0:02:56]} 9. h5 {[%clk 0:02:47]}  Nxc3 {[%clk 0:02:53]} 10. bxc3 {[%clk 0:02:47]}  Qa5 {[%clk 0:02:53]} 11. Qd2 {[%clk 0:02:41]}  d5 {[%clk 0:02:51]} 12. Bd3 {[%clk 0:02:41]}  e5 {[%clk 0:02:46]} 13. Nb3 {[%clk 0:02:36]}  Qc7 {[%clk 0:02:41]} 14. hxg6 {[%clk 0:02:36]}  fxg6 {[%clk 0:02:41]} 15. Bh6 {[%clk 0:02:28]}  Bg4 {[%clk 0:02:09]} 16. f3 {[%clk 0:02:23]}  e4 {[%clk 0:01:55]} 17. Be2 {[%clk 0:01:55]}  Qg3+ {[%clk 0:01:41]} 18. Kd1 {[%clk 0:01:40]}  Qxg2 {[%clk 0:01:40]} 0-1


[Site "https://www.chess.com"]

[Event "Titled Tuesday Blitz April 26 Early 2022"]
[White "Piliczewski, Bogusz"]
[Black "Gatterer, Florian"]
[WhiteFideId "1104144"]
[BlackFideId "811688"]
[WhiteElo "1896"]
[BlackElo "2218"]
[Result "1-0"]
[Round "05"]
[TimeControl "180+1"]
[Date "2022.04.26"]
[WhiteClock "0:01:52"]
[BlackClock "0:01:40"]

1. d4 {[%clk 0:03:00]}  Nf6 {[%clk 0:02:48]} 2. Nf3 {[%clk 0:02:59]}  g6 {[%clk 0:02:46]} 3. Bf4 {[%clk 0:03:00]}  Bg7 {[%clk 0:02:44]} 4. e3 {[%clk 0:03:01]}  O-O {[%clk 0:02:44]} 5. Be2 {[%clk 0:03:01]}  d6 {[%clk 0:02:44]} 6. h3 {[%clk 0:03:00]}  Nbd7 {[%clk 0:02:43]} 7. O-O {[%clk 0:03:01]}  Qe8 {[%clk 0:02:43]} 8. Bh2 {[%clk 0:02:58]}  e5 {[%clk 0:02:43]} 9. c4 {[%clk 0:02:57]}  e4 {[%clk 0:02:40]} 10. Nfd2 {[%clk 0:02:56]}  d5 {[%clk 0:02:39]} 11. Nc3 {[%clk 0:02:56]}  c6 {[%clk 0:02:31]} 12. Bd6 {[%clk 0:02:55]}  Qe6 {[%clk 0:02:21]} 13. Bxf8 {[%clk 0:02:54]}  Bxf8 {[%clk 0:02:22]} 14. b4 {[%clk 0:02:48]}  Bxb4 {[%clk 0:02:20]} 15. Qb3 {[%clk 0:02:46]}  Bd6 {[%clk 0:02:17]} 16. cxd5 {[%clk 0:02:38]}  cxd5 {[%clk 0:02:14]} 17. Nb5 {[%clk 0:02:27]}  Bb8 {[%clk 0:02:13]} 18. Rfc1 {[%clk 0:02:25]}  h5 {[%clk 0:02:03]} 19. Rxc8+ {[%clk 0:02:24]}  Kg7 {[%clk 0:02:03]} 20. Nc7 {[%clk 0:02:17]}  Bxc7 {[%clk 0:02:00]} 21. Rxa8 {[%clk 0:02:17]}  Qd6 {[%clk 0:01:59]} 22. Nf1 {[%clk 0:02:12]}  g5 {[%clk 0:01:56]} 23. Qxb7 {[%clk 0:02:06]}  g4 {[%clk 0:01:56]} 24. hxg4 {[%clk 0:01:59]}  Nxg4 {[%clk 0:01:52]} 25. Rxa7 {[%clk 0:01:55]}  Nh2 {[%clk 0:01:40]} 26. Qxc7 {[%clk 0:01:52]} 1-0


[Site "https://www.chess.com"]

[Event "Titled Tuesday Blitz April 26 Early 2022"]
[White "Pires, Marcos Vinicius Torsani"]
[Black "Brodowski, Piotr"]
[WhiteFideId "2118939"]
[BlackFideId "1124480"]
[WhiteElo "2273"]
[BlackElo "2422"]
[Result "0-1"]
[Round "05"]
[TimeControl "180+1"]
[Date "2022.04.26"]
[WhiteClock "0:00:04"]
[BlackClock "0:00:08"]

1. d4 {[%clk 0:03:00]}  Nf6 {[%clk 0:02:55]} 2. Bf4 {[%clk 0:02:58]}  c5 {[%clk 0:02:53]} 3. e3 {[%clk 0:02:58]}  Qb6 {[%clk 0:02:49]} 4. Nc3 {[%clk 0:02:58]}  e6 {[%clk 0:02:46]} 5. a3 {[%clk 0:02:56]}  d5 {[%clk 0:02:42]} 6. Nf3 {[%clk 0:02:53]}  a6 {[%clk 0:02:28]} 7. Be2 {[%clk 0:02:44]}  Nc6 {[%clk 0:02:18]} 8. O-O {[%clk 0:02:43]}  cxd4 {[%clk 0:02:18]} 9. exd4 {[%clk 0:02:41]}  Bd7 {[%clk 0:02:19]} 10. Na4 {[%clk 0:02:38]}  Qa5 {[%clk 0:02:14]} 11. Nc3 {[%clk 0:02:17]}  Rc8 {[%clk 0:02:06]} 12. b4 {[%clk 0:02:12]}  Qd8 {[%clk 0:02:03]} 13. Nb1 {[%clk 0:01:37]}  Na7 {[%clk 0:01:28]} 14. Ne5 {[%clk 0:01:33]}  Nb5 {[%clk 0:01:25]} 15. a4 {[%clk 0:01:23]}  Nd6 {[%clk 0:01:24]} 16. c3 {[%clk 0:01:08]}  Be7 {[%clk 0:01:19]} 17. Nd3 {[%clk 0:01:02]}  O-O {[%clk 0:01:15]} 18. Nc5 {[%clk 0:01:02]}  Qc7 {[%clk 0:00:27]} 19. Bd3 {[%clk 0:00:55]}  h6 {[%clk 0:00:27]} 20. h3 {[%clk 0:00:54]}  Rfd8 {[%clk 0:00:19]} 21. a5 {[%clk 0:00:55]}  Be8 {[%clk 0:00:18]} 22. Nd2 {[%clk 0:00:54]}  Qb8 {[%clk 0:00:18]} 23. Nf3 {[%clk 0:00:49]}  Qa7 {[%clk 0:00:18]} 24. Ne5 {[%clk 0:00:49]}  Nde4 {[%clk 0:00:16]} 25. Rc1 {[%clk 0:00:35]}  Bb5 {[%clk 0:00:16]} 26. Bxb5 {[%clk 0:00:33]}  axb5 {[%clk 0:00:17]} 27. Qe2 {[%clk 0:00:31]}  b6 {[%clk 0:00:17]} 28. axb6 {[%clk 0:00:30]}  Qxb6 {[%clk 0:00:17]} 29. f3 {[%clk 0:00:29]}  Nd6 {[%clk 0:00:16]} 30. Ra1 {[%clk 0:00:28]}  Nc4 {[%clk 0:00:17]} 31. Nxc4 {[%clk 0:00:28]}  dxc4 {[%clk 0:00:17]} 32. Ra6 {[%clk 0:00:27]}  Bxc5 {[%clk 0:00:15]} 33. Rxb6 {[%clk 0:00:26]}  Bxb6 {[%clk 0:00:16]} 34. Qe5 {[%clk 0:00:22]}  Nd5 {[%clk 0:00:16]} 35. Bd2 {[%clk 0:00:21]}  Nxb4 {[%clk 0:00:14]} 36. Qxb5 {[%clk 0:00:18]}  Nd5 {[%clk 0:00:14]} 37. Kh1 {[%clk 0:00:14]}  Rc7 {[%clk 0:00:12]} 38. Qa4 {[%clk 0:00:14]}  Rdc8 {[%clk 0:00:12]} 39. Qc2 {[%clk 0:00:15]}  Ra7 {[%clk 0:00:11]} 40. Rb1 {[%clk 0:00:14]}  Rca8 {[%clk 0:00:11]} 41. Kh2 {[%clk 0:00:13]}  Ra2 {[%clk 0:00:11]} 42. Rb2 {[%clk 0:00:13]}  Rxb2 {[%clk 0:00:12]} 43. Qxb2 {[%clk 0:00:13]}  h5 {[%clk 0:00:11]} 44. h4 {[%clk 0:00:11]}  Bc7+ {[%clk 0:00:10]} 45. g3 {[%clk 0:00:11]}  Rb8 {[%clk 0:00:11]} 46. Qa2 {[%clk 0:00:10]}  Rb3 {[%clk 0:00:11]} 47. Kh3 {[%clk 0:00:09]}  Bd6 {[%clk 0:00:09]} 48. Qa8+ {[%clk 0:00:07]}  Bf8 {[%clk 0:00:09]} 49. Qa6 {[%clk 0:00:06]}  Rb2 {[%clk 0:00:08]} 50. Bg5 {[%clk 0:00:05]}  Rc2 {[%clk 0:00:08]} 51. Qxc4 {[%clk 0:00:05]}  Rxc3 {[%clk 0:00:09]} 52. Qe2 {[%clk 0:00:05]}  Rc6 {[%clk 0:00:07]} 53. Bd2 {[%clk 0:00:04]}  g6 {[%clk 0:00:07]} 54. f4 {[%clk 0:00:04]}  Bg7 {[%clk 0:00:08]} 55. Be3 {[%clk 0:00:04]}  Rc3 {[%clk 0:00:08]} 56. Bf2 {[%clk 0:00:04]}  Nxf4+ {[%clk 0:00:08]} 0-1


[Site "https://www.chess.com"]

[Event "Titled Tuesday Blitz April 26 Early 2022"]
[White "Polster, Christian"]
[Black "Sarkar, Justin"]
[WhiteFideId "12965081"]
[BlackFideId "2010011"]
[WhiteElo "2311"]
[BlackElo "2038"]
[Result "0-1"]
[Round "05"]
[TimeControl "180+1"]
[Date "2022.04.26"]
[WhiteClock "0:00:06"]
[BlackClock "0:00:03"]

1. e4 {[%clk 0:03:00]}  c5 {[%clk 0:02:45]} 2. Nc3 {[%clk 0:03:00]}  Nc6 {[%clk 0:02:41]} 3. Nge2 {[%clk 0:02:59]}  Nf6 {[%clk 0:02:32]} 4. g3 {[%clk 0:02:58]}  d5 {[%clk 0:02:27]} 5. exd5 {[%clk 0:02:58]}  Nxd5 {[%clk 0:02:26]} 6. Bg2 {[%clk 0:02:58]}  Nc7 {[%clk 0:01:58]} 7. O-O {[%clk 0:02:51]}  e5 {[%clk 0:01:56]} 8. Re1 {[%clk 0:02:49]}  Be7 {[%clk 0:01:55]} 9. d3 {[%clk 0:02:25]}  O-O {[%clk 0:01:50]} 10. h3 {[%clk 0:01:51]}  Be6 {[%clk 0:01:32]} 11. Kh2 {[%clk 0:01:48]}  Qd7 {[%clk 0:01:29]} 12. f4 {[%clk 0:01:36]}  f6 {[%clk 0:00:48]} 13. Be3 {[%clk 0:01:27]}  Rad8 {[%clk 0:00:43]} 14. g4 {[%clk 0:01:06]}  exf4 {[%clk 0:00:32]} 15. Nxf4 {[%clk 0:01:07]}  Bf7 {[%clk 0:00:31]} 16. Kh1 {[%clk 0:01:01]}  b6 {[%clk 0:00:29]} 17. Qf3 {[%clk 0:00:51]}  Ne5 {[%clk 0:00:26]} 18. Qf2 {[%clk 0:00:49]}  f5 {[%clk 0:00:17]} 19. gxf5 {[%clk 0:00:30]}  Qxf5 {[%clk 0:00:17]} 20. Rf1 {[%clk 0:00:20]}  Ng6 {[%clk 0:00:16]} 21. Nxg6 {[%clk 0:00:18]}  Bxg6 {[%clk 0:00:15]} 22. Qxf5 {[%clk 0:00:17]}  Bxf5 {[%clk 0:00:15]} 23. Rae1 {[%clk 0:00:16]}  g6 {[%clk 0:00:13]} 24. Bh6 {[%clk 0:00:15]}  Rf7 {[%clk 0:00:11]} 25. Rxe7 {[%clk 0:00:12]}  Rxe7 {[%clk 0:00:11]} 26. Bg5 {[%clk 0:00:13]}  Rde8 {[%clk 0:00:10]} 27. Bxe7 {[%clk 0:00:12]}  Rxe7 {[%clk 0:00:10]} 28. Kh2 {[%clk 0:00:11]}  Kg7 {[%clk 0:00:10]} 29. Rf2 {[%clk 0:00:11]}  Re3 {[%clk 0:00:09]} 30. Be4 {[%clk 0:00:08]}  Rxh3+ {[%clk 0:00:08]} 31. Kg2 {[%clk 0:00:08]}  Rh5 {[%clk 0:00:08]} 32. Bxf5 {[%clk 0:00:08]}  Rxf5 {[%clk 0:00:09]} 33. Rxf5 {[%clk 0:00:07]}  gxf5 {[%clk 0:00:09]} 34. Kf3 {[%clk 0:00:07]}  Kf6 {[%clk 0:00:09]} 35. Ne2 {[%clk 0:00:07]}  h5 {[%clk 0:00:09]} 36. Nf4 {[%clk 0:00:07]}  h4 {[%clk 0:00:09]} 37. Nh3 {[%clk 0:00:06]}  Ne6 {[%clk 0:00:08]} 38. Ke3 {[%clk 0:00:06]}  Nd4 {[%clk 0:00:08]} 39. c3 {[%clk 0:00:06]}  Ne6 {[%clk 0:00:08]} 40. d4 {[%clk 0:00:05]}  cxd4+ {[%clk 0:00:08]} 41. cxd4 {[%clk 0:00:06]}  Nc7 {[%clk 0:00:08]} 42. Nf4 {[%clk 0:00:05]}  Kg5 {[%clk 0:00:08]} 43. d5 {[%clk 0:00:05]}  Kf6 {[%clk 0:00:07]} 44. Kd4 {[%clk 0:00:05]}  Nb5+ {[%clk 0:00:03]} 45. Kc4 {[%clk 0:00:06]}  Nd6+ {[%clk 0:00:03]} 46. Kd4 {[%clk 0:00:06]}  Kg5 {[%clk 0:00:03]} 47. Ke5 {[%clk 0:00:06]}  Nc4+ {[%clk 0:00:03]} 48. Kd4 {[%clk 0:00:07]}  Kxf4 {[%clk 0:00:03]} 49. Kxc4 {[%clk 0:00:06]}  Ke5 {[%clk 0:00:03]} 0-1


[Site "https://www.chess.com"]